[Event "9th RTU Rapid 2019"]
[Site "Riga"]
[Date "2019.08.04"]
[Round "2.22"]
[White "Melderis, Uldis"]
[Black "Evchin, Maxim"]
[Result "0-1"]
[WhiteElo "1897"]
[BlackElo "2269"]
[PlyCount "62"]
[EventDate "2019.08.05"]
[EventType "swiss"]
[EventCountry "LAT"]
[TimeControl "5400+30"]
[WhiteClock "0:09:48"]
[BlackClock "0:09:43"]

1. b4 {[%emt 1:15:23]} g6 {[%emt 1:15:40]} 2. Bb2 {[%emt 0:00:27]} Nf6 {[%emt 0:00:26]} 3. e3 {[%emt 0:00:26]} Bg7 {[%emt 0:00:28]} 4. Nf3 {[%emt 0:00:27]} O-O {[%emt 0:00:30]} 5. Be2 {[%emt 0:00:26]} d6 {[%emt 0:00:48]} 6. O-O {[%emt 0:00:28]} e5 {[%emt 0:00:29]} 7. d3 {[%emt 0:00:27]} Re8 {[%emt 0:00:30]} 8. Nbd2 {[%emt 0:00:26]} Nd5 {[%emt 0:01:02]} 9. b5 {[%emt 0:01:17]} Nb6 {[%emt 0:01:10]} 10. Rb1 {[%emt 0:00:38]} a6 {[%emt 0:00:35]} 11. bxa6 {[%emt 0:00:52]} Nxa6 {[%emt 0:00:32]} 12. a3 {[%emt 0:00:34]} Nc5 {[%emt 0:00:39]} 13. c4 {[%emt 0:00:33]} Bf5 {[%emt 0:00:39]} 14. e4 {[%emt 0:01:13]} Bd7 {[%emt 0:00:31]} 15. Qc2 {[%emt 0:00:45]} Ne6 {[%emt 0:01:02]} 16. Rfe1 {[%emt 0:00:42]} Na4 {[%emt 0:01:04]} 17. Bc3 {[%emt 0:01:28]} Nxc3 {[%emt 0:00:46]} 18. Qxc3 {[%emt 0:00:27]} b6 {[%emt 0:00:34]} 19. Nf1 {[%emt 0:01:48]} Nd4 {[%emt 0:00:37]} 20. Nxd4 {[%emt 0:00:30]} exd4 {[%emt 0:00:27]} 21. Qb2 {[%emt 0:00:41]} Ra5 {[%emt 0:00:28]} 22. Nd2 {[%emt 0:00:37]} Qa8 {[%emt 0:00:29]} 23. Ra1 {[%emt 0:00:31]} Qa7 {[%emt 0:01:07]} 24. h3 {[%emt 0:00:31]} Ra8 {[%emt 0:00:37]} 25. Nb1 {[%emt 0:00:27]} b5 {[%emt 0:00:45]} 26. cxb5 {[%emt 0:00:37]} Rxb5 {[%emt 0:00:27]} 27. Qd2 {[%emt 0:00:36]} Rab8 {[%emt 0:00:41]} 28. Qc1 {[%emt 0:00:41]} Qa5 {[%emt 0:01:09]} 29. Nd2 {[%emt 0:00:36]} Bh6 {[%emt 0:00:30]} 30. Nc4 {[%emt 0:00:46]} Bxc1 {[%emt 0:00:31]} 31. Nxa5 {[%emt 0:00:27]} Bd2 {[%emt 0:00:29]} 0-1

[Event "9th RTU Rapid 2019"]
[Site "Riga"]
[Date "2019.08.04"]
[Round "2.23"]
[White "Reizniece-Ozola, Dana"]
[Black "Efremov, Vladislav"]
[Result "1-0"]
[WhiteElo "2261"]
[BlackElo "1956"]
[PlyCount "89"]
[EventDate "2019.08.05"]
[EventType "swiss"]
[EventCountry "LAT"]
[TimeControl "5400+30"]
[WhiteClock "0:00:13"]
[BlackClock "0:01:52"]

1. c4 {[%emt 1:15:23]} e6 {[%emt 1:15:21]} 2. Nf3 {[%emt 0:00:30]} d5 {[%emt 0:00:32]} 3. b3 {[%emt 0:00:26]} Nf6 {[%emt 0:00:32]} 4. Bb2 {[%emt 0:01:23]} Be7 {[%emt 0:00:30]} 5. e3 {[%emt 0:00:45]} c6 {[%emt 0:00:31]} 6. Qc2 {[%emt 0:00:31]} Nbd7 {[%emt 0:00:54]} 7. Nc3 {[%emt 0:00:30]} b6 {[%emt 0:00:58]} 8. cxd5 {[%emt 0:00:50]} exd5 {[%emt 0:00:40]} 9. Nd4 {[%emt 0:00:30]} Bb7 {[%emt 0:01:23]} 10. Nf5 {[%emt 0:00:27]} O-O {[%emt 0:00:59]} 11. Be2 {[%emt 0:01:38]} Re8 {[%emt 0:00:50]} 12. Nxe7+ {[%emt 0:01:20]} Qxe7 {[%emt 0:00:50]} 13. O-O {[%emt 0:00:27]} c5 {[%emt 0:02:50]} 14. f4 {[%emt 0:06:25]} d4 {[%emt 0:02:36]} 15. Nd1 {[%emt 0:00:26]} dxe3 {[%emt 0:01:05]} 16. Nxe3 {[%emt 0:00:29]} Nd5 {[%emt 0:02:59]} 17. Rf3 {[%emt 0:00:26]} N7f6 {[%emt 0:01:37]} 18. Qf5 {[%emt 0:01:12]} Qe6 {[%emt 0:01:30]} 19. Qg5 {[%emt 0:00:50]} h6 {[%emt 0:00:40]} 20. Qg3 {[%emt 0:00:53]} Nxe3 {[%emt 0:01:06]} 21. Rxe3 {[%emt 0:00:32]} Qd6 {[%emt 0:00:46]} 22. Be5 {[%emt 0:00:48]} Qd8 {[%emt 0:00:50]} 23. Rd1 {[%emt 0:00:52]} g6 {[%emt 0:01:16]} 24. Bc4 {[%emt 0:01:27]} Bd5 {[%emt 0:00:37]} 25. Bxf6 {[%emt 0:00:31]} Qxf6 {[%emt 0:00:28]} 26. Bxd5 {[%emt 0:00:32]} Rad8 {[%emt 0:00:32]} 27. Bc4 {[%emt 0:00:41]} Kg7 {[%emt 0:00:29]} 28. Rde1 {[%emt 0:00:43]} Qd4 {[%emt 0:00:26]} 29. Qf2 {[%emt 0:00:26]} Rxe3 {[%emt 0:00:33]} 30. Qxe3 {[%emt 0:00:59]} Qxd2 {[%emt 0:00:28]} 31. Qxd2 {[%emt 0:00:26]} Rxd2 {[%emt 0:00:26]} 32. Re7 {[%emt 0:00:34]} Rxa2 {[%emt 0:00:27]} 33. Rxf7+ {[%emt 0:00:27]} Kh8 {[%emt 0:00:30]} 34. Rb7 {[%emt 0:00:31]} h5 {[%emt 0:00:38]} 35. h4 {[%emt 0:00:34]} Ra1+ {[%emt 0:00:27]} 36. Kh2 {[%emt 0:00:26]} Ra2 {[%emt 0:00:31]} 37. Kg3 {[%emt 0:00:29]} Ra1 {[%emt 0:00:32]} 38. Kf3 {[%emt 0:00:30]} Ra2 {[%emt 0:00:26]} 39. g3 {[%emt 0:00:31]} Ra3 {[%emt 0:00:27]} 40. Ke4 {[%emt 0:00:28]} Ra2 {[%emt 0:00:35]} 41. Ke5 {[%emt 0:00:37]} Rg2 {[%emt 0:00:27]} 42. Rxa7 {[%emt 0:00:46]} Rxg3 {[%emt 0:00:26]} 43. Kf6 {[%emt 0:00:32]} Rg4 {[%emt 0:00:41]} 44. Be6 {[%emt 0:00:29]} Rxf4+ {[%emt 0:00:26]} 45. Kxg6 {[%emt 0:00:26]} 1-0

[Event "9th RTU Rapid 2019"]
[Site "Riga"]
[Date "2019.08.04"]
[Round "2.24"]
[White "Bagatais, Janis"]
[Black "Kretainis, Kristaps"]
[Result "0-1"]
[WhiteElo "1946"]
[BlackElo "2252"]
[PlyCount "96"]
[EventDate "2019.08.05"]
[EventType "swiss"]
[EventCountry "LAT"]
[TimeControl "5400+30"]
[WhiteClock "0:14:13"]
[BlackClock "0:00:19"]

1. e4 {[%emt 1:15:22]} b6 {[%emt 1:15:23]} 2. d4 {[%emt 0:00:35]} Bb7 {[%emt 0:00:25]} 3. Nc3 {[%emt 0:00:02]} e6 4. a3 {[%emt 0:00:51]} Nf6 {[%emt 0:00:52]} 5. Bd3 {[%emt 0:00:44]} d5 {[%emt 0:00:29]} 6. e5 {[%emt 0:00:33]} Ne4 {[%emt 0:00:26]} 7. Nf3 {[%emt 0:01:46]} c5 {[%emt 0:00:27]} 8. Be3 {[%emt 0:03:20]} Nxc3 {[%emt 0:00:34]} 9. bxc3 {[%emt 0:00:28]} c4 {[%emt 0:00:26]} 10. Be2 {[%emt 0:00:30]} Be7 {[%emt 0:00:26]} 11. O-O {[%emt 0:00:29]} Nc6 {[%emt 0:00:26]} 12. Qd2 {[%emt 0:01:39]} h6 {[%emt 0:00:27]} 13. Ne1 {[%emt 0:00:28]} Qd7 {[%emt 0:00:31]} 14. f4 {[%emt 0:00:33]} O-O-O {[%emt 0:00:27]} 15. Bg4 {[%emt 0:01:01]} f5 {[%emt 0:00:44]} 16. exf6 {[%emt 0:00:39]} gxf6 {[%emt 0:00:26]} 17. Nf3 {[%emt 0:01:06]} h5 {[%emt 0:00:33]} 18. Bh3 {[%emt 0:00:27]} f5 {[%emt 0:00:30]} 19. Bf2 {[%emt 0:00:49]} h4 {[%emt 0:00:39]} 20. Qe1 {[%emt 0:01:21]} Rdg8 {[%emt 0:00:31]} 21. Kh1 {[%emt 0:00:35]} Bd6 {[%emt 0:00:45]} 22. Ne5 {[%emt 0:00:42]} Bxe5 {[%emt 0:00:27]} 23. dxe5 {[%emt 0:00:31]} d4 {[%emt 0:00:31]} 24. cxd4 {[%emt 0:00:58]} Nxd4 {[%emt 0:01:05]} 25. Bxd4 {[%emt 0:02:26]} Qxd4 {[%emt 0:00:27]} 26. Rd1 {[%emt 0:00:32]} Qc5 {[%emt 0:00:42]} 27. Rd6 {[%emt 0:01:21]} Bd5 {[%emt 0:00:26]} 28. Qd2 {[%emt 0:01:38]} Rd8 {[%emt 0:00:37]} 29. Rxd8+ {[%emt 0:00:39]} Rxd8 {[%emt 0:00:26]} 30. Qc3 {[%emt 0:01:01]} Be4 {[%emt 0:00:38]} 31. a4 {[%emt 0:00:46]} Qd4 {[%emt 0:00:34]} 32. Qxd4 {[%emt 0:00:51]} Rxd4 {[%emt 0:00:26]} 33. Kg1 {[%emt 0:01:02]} Bxc2 {[%emt 0:00:31]} 34. a5 {[%emt 0:00:31]} bxa5 {[%emt 0:00:30]} 35. g4 {[%emt 0:00:35]} hxg3 {[%emt 0:00:27]} 36. hxg3 {[%emt 0:00:27]} Rd1 {[%emt 0:00:31]} 37. g4 {[%emt 0:00:29]} Rxf1+ {[%emt 0:00:26]} 38. Kxf1 {[%emt 0:00:27]} fxg4 {[%emt 0:00:26]} 39. Bxg4 {[%emt 0:00:26]} Kd7 {[%emt 0:00:27]} 40. Ke2 {[%emt 0:00:35]} a4 {[%emt 0:00:27]} 41. Kd2 {[%emt 0:00:33]} Bd3 {[%emt 0:00:29]} 42. Kc3 {[%emt 0:00:36]} a3 {[%emt 0:00:26]} 43. Bd1 {[%emt 0:00:32]} Ke7 {[%emt 0:00:32]} 44. Ba4 {[%emt 0:00:35]} Kf7 {[%emt 0:00:34]} 45. Bd7 {[%emt 0:00:27]} a5 {[%emt 0:00:45]} 46. Bc8 {[%emt 0:00:27]} Bb1 {[%emt 0:00:37]} 47. Ba6 {[%emt 0:00:50]} a2 {[%emt 0:00:27]} 48. Kb2 {[%emt 0:00:26]} c3+ {[%emt 0:00:26]} 0-1

[Event "9th RTU Rapid 2019"]
[Site "Riga"]
[Date "2019.08.04"]
[Round "2.25"]
[White "Cimina, Andra"]
[Black "Wedda, Dries"]
[Result "0-1"]
[WhiteElo "1951"]
[BlackElo "2234"]
[PlyCount "76"]
[EventDate "2019.08.05"]
[EventType "swiss"]
[EventCountry "LAT"]
[TimeControl "5400+30"]
[WhiteClock "0:02:11"]
[BlackClock "0:01:34"]

1. d4 {[%emt 1:15:21]} Nf6 {[%emt 1:15:22]} 2. c4 {[%emt 0:00:26]} e6 {[%emt 0:00:45]} 3. Nc3 {[%emt 0:00:26]} Bb4 {[%emt 0:00:31]} 4. Qc2 {[%emt 0:00:27]} d5 {[%emt 0:00:27]} 5. e3 {[%emt 0:00:35]} O-O {[%emt 0:00:44]} 6. a3 {[%emt 0:00:27]} Bxc3+ {[%emt 0:00:55]} 7. Qxc3 {[%emt 0:00:27]} b6 {[%emt 0:00:55]} 8. f3 {[%emt 0:00:32]} Bb7 {[%emt 0:00:33]} 9. Nh3 {[%emt 0:00:37]} Nbd7 {[%emt 0:00:28]} 10. Bd3 {[%emt 0:00:51]} c5 {[%emt 0:00:28]} 11. O-O {[%emt 0:00:49]} Rc8 {[%emt 0:00:34]} 12. cxd5 {[%emt 0:02:04]} exd5 {[%emt 0:01:27]} 13. Bf5 {[%emt 0:02:29]} g6 {[%emt 0:00:48]} 14. Bxd7 {[%emt 0:00:37]} Nxd7 {[%emt 0:00:33]} 15. Nf4 {[%emt 0:01:24]} Re8 {[%emt 0:00:46]} 16. b3 {[%emt 0:01:06]} c4 {[%emt 0:01:21]} 17. Bb2 {[%emt 0:01:13]} Qf6 {[%emt 0:01:42]} 18. Rac1 {[%emt 0:02:05]} Nf8 {[%emt 0:00:50]} 19. Rfe1 {[%emt 0:02:30]} Rc7 {[%emt 0:02:15]} 20. bxc4 {[%emt 0:00:53]} Rxc4 {[%emt 0:00:30]} 21. Qb3 {[%emt 0:00:37]} Rec8 {[%emt 0:00:59]} 22. Rxc4 {[%emt 0:00:46]} Rxc4 {[%emt 0:00:29]} 23. Rc1 {[%emt 0:00:42]} Ne6 {[%emt 0:03:54]} 24. Rxc4 {[%emt 0:01:46]} dxc4 {[%emt 0:00:27]} 25. Qxc4 {[%emt 0:00:27]} Nxf4 {[%emt 0:00:29]} 26. exf4 {[%emt 0:00:28]} Qxf4 {[%emt 0:00:27]} 27. Bc1 {[%emt 0:00:30]} Qh4 {[%emt 0:00:59]} 28. Bd2 {[%emt 0:00:58]} Qe7 {[%emt 0:00:41]} 29. Qd3 {[%emt 0:00:51]} Bd5 {[%emt 0:00:29]} 30. Bb4 {[%emt 0:00:39]} Qe6 {[%emt 0:00:37]} 31. Kf2 {[%emt 0:00:32]} a5 {[%emt 0:00:34]} 32. Bd2 {[%emt 0:00:31]} Qd6 {[%emt 0:00:33]} 33. g3 {[%emt 0:00:35]} h5 {[%emt 0:00:32]} 34. Bf4 {[%emt 0:00:32]} Qe6 {[%emt 0:00:30]} 35. Qe3 {[%emt 0:00:30]} Qc8 {[%emt 0:01:12]} 36. Qc1 {[%emt 0:00:29]} Qh3 {[%emt 0:00:32]} 37. Qg1 {[%emt 0:00:40]} Qf5 {[%emt 0:00:41]} 38. Qc1 {[%emt 0:00:34]} g5 {[%emt 0:00:50]} 0-1

[Event "9th RTU Rapid 2019"]
[Site "Riga"]
[Date "2019.08.04"]
[Round "2.26"]
[White "Vedrickas, Tautvydas"]
[Black "Krums, Ilmars"]
[Result "1-0"]
[WhiteElo "2231"]
[BlackElo "1971"]
[PlyCount "65"]
[EventDate "2019.08.05"]
[EventType "swiss"]
[EventCountry "LAT"]
[TimeControl "5400+30"]
[WhiteClock "0:06:24"]
[BlackClock "0:03:00"]

1. d4 {[%emt 1:15:27]} Nf6 {[%emt 1:15:20]} 2. c4 {[%emt 0:00:27]} e6 {[%emt 0:00:26]} 3. Nc3 {[%emt 0:01:06]} Bb4 {[%emt 0:00:26]} 4. Qc2 {[%emt 0:00:26]} Bxc3+ {[%emt 0:00:27]} 5. bxc3 {[%emt 0:00:31]} b6 {[%emt 0:00:26]} 6. e4 {[%emt 0:00:34]} d6 {[%emt 0:00:26]} 7. Bd3 {[%emt 0:00:28]} Bb7 {[%emt 0:00:26]} 8. Ne2 {[%emt 0:00:27]} Nbd7 {[%emt 0:00:26]} 9. O-O {[%emt 0:00:30]} e5 {[%emt 0:00:30]} 10. f4 {[%emt 0:00:28]} Qe7 {[%emt 0:00:29]} 11. Ng3 {[%emt 0:01:11]} h6 {[%emt 0:02:17]} 12. a4 {[%emt 0:00:35]} a5 {[%emt 0:00:26]} 13. c5 {[%emt 0:01:36]} bxc5 {[%emt 0:01:19]} 14. fxe5 {[%emt 0:00:49]} dxe5 {[%emt 0:00:38]} 15. Rb1 {[%emt 0:00:42]} Ba6 {[%emt 0:02:09]} 16. Bxa6 {[%emt 0:00:44]} Rxa6 {[%emt 0:00:26]} 17. Nf5 {[%emt 0:00:30]} Qf8 {[%emt 0:00:26]} 18. dxe5 {[%emt 0:00:47]} g6 {[%emt 0:00:51]} 19. Ne3 {[%emt 0:01:13]} Nh7 {[%emt 0:01:03]} 20. Nd5 {[%emt 0:00:36]} Rc6 {[%emt 0:00:26]} 21. e6 {[%emt 0:00:40]} Nb6 {[%emt 0:00:48]} 22. Rxf7 {[%emt 0:01:41]} Qd6 {[%emt 0:00:30]} 23. Re7+ {[%emt 0:01:13]} Qxe7 {[%emt 0:00:32]} 24. Nxe7 {[%emt 0:00:27]} Kxe7 {[%emt 0:00:25]} 25. Bxh6 {[%emt 0:01:09]} Rd8 {[%emt 0:00:53]} 26. Qf2 {[%emt 0:00:38]} Kxe6 {[%emt 0:00:35]} 27. Rf1 {[%emt 0:00:49]} Rd7 {[%emt 0:00:35]} 28. Qh4 {[%emt 0:01:41]} Rf7 {[%emt 0:01:27]} 29. Rxf7 {[%emt 0:02:24]} Kxf7 {[%emt 0:00:27]} 30. Qd8 {[%emt 0:00:36]} Nf6 {[%emt 0:02:21]} 31. e5 {[%emt 0:01:19]} Ng4 {[%emt 0:00:31]} 32. Bf4 {[%emt 0:01:11]} Ke6 {[%emt 0:01:09]} 33. h3 {[%emt 0:00:35]} 1-0

[Event "9th RTU Rapid 2019"]
[Site "Riga"]
[Date "2019.08.04"]
[Round "2.27"]
[White "Mohite, Ranveer"]
[Black "Chibukhchyan, Erik"]
[Result "1/2-1/2"]
[WhiteElo "1935"]
[BlackElo "2231"]
[PlyCount "191"]
[EventDate "2019.08.05"]
[EventType "swiss"]
[EventCountry "LAT"]
[TimeControl "5400+30"]
[WhiteClock "0:00:53"]
[BlackClock "0:03:36"]

1. e4 {[%emt 0:00:56]} e5 {[%emt 0:00:02]} 2. Nf3 {[%emt 0:00:03]} Nc6 {[%emt 0:00:01]} 3. Bb5 {[%emt 0:00:02]} a6 {[%emt 0:00:01]} 4. Ba4 Nf6 5. O-O {[%emt 0:00:03]} Be7 {[%emt 0:00:01]} 6. d3 {[%emt 0:00:03]} b5 {[%emt 0:00:01]} 7. Bb3 {[%emt 0:00:02]} d6 8. a3 {[%emt 0:00:05]} O-O {[%emt 0:00:04]} 9. Nc3 Na5 10. Ba2 {[%emt 0:00:01]} c5 11. b4 {[%emt 0:00:06]} cxb4 {[%emt 0:00:29]} 12. axb4 {[%emt 0:00:03]} Nc6 {[%emt 0:00:02]} 13. Nd5 {[%emt 0:00:06]} Bg4 {[%emt 0:01:10]} 14. h3 {[%emt 0:01:03]} Bxf3 {[%emt 0:00:25]} 15. Qxf3 {[%emt 0:00:02]} Nd4 {[%emt 0:00:01]} 16. Qd1 {[%emt 0:00:02]} Rc8 {[%emt 0:00:07]} 17. c3 {[%emt 0:02:07]} Nxd5 {[%emt 0:00:10]} 18. Bxd5 {[%emt 0:00:01]} Rxc3 {[%emt 0:00:09]} 19. Bb2 {[%emt 0:00:35]} Rc7 {[%emt 0:01:00]} 20. f4 {[%emt 0:01:18]} Nc2 {[%emt 0:01:03]} 21. Qd2 {[%emt 0:00:20]} Nxa1 {[%emt 0:00:19]} 22. Bxa1 {[%emt 0:00:24]} Bf6 {[%emt 0:00:45]} 23. fxe5 {[%emt 0:00:49]} dxe5 {[%emt 0:00:13]} 24. Kh2 {[%emt 0:01:57]} Rd7 {[%emt 0:00:06]} 25. Qa2 {[%emt 0:00:19]} Rxd5 {[%emt 0:01:37]} 26. exd5 {[%emt 0:00:02]} Qd6 {[%emt 0:00:01]} 27. Kh1 {[%emt 0:00:30]} Rd8 {[%emt 0:01:28]} 28. Rc1 {[%emt 0:01:02]} Qxd5 {[%emt 0:03:15]} 29. Qxd5 {[%emt 0:00:02]} Rxd5 30. Bxe5 {[%emt 0:01:05]} Rxd3 {[%emt 0:00:18]} 31. Bxf6 {[%emt 0:00:41]} gxf6 {[%emt 0:00:02]} 32. Rc6 Kg7 {[%emt 0:00:05]} 33. Rxa6 {[%emt 0:00:02]} Rd4 {[%emt 0:00:02]} 34. Rb6 {[%emt 0:00:03]} Rxb4 35. Kh2 {[%emt 0:00:01]} Rb3 36. Kg1 {[%emt 0:00:01]} h5 {[%emt 0:00:15]} 37. Kf2 {[%emt 0:00:07]} Kg6 {[%emt 0:00:05]} 38. Rc6 {[%emt 1:30:57]} Rb2+ {[%emt 1:31:03]} 39. Kf3 {[%emt 0:00:27]} b4 {[%emt 0:00:30]} 40. Rc5 {[%emt 0:00:30]} Rb3+ {[%emt 0:00:33]} 41. Kf2 {[%emt 0:00:26]} Rc3 {[%emt 0:00:31]} 42. Rb5 {[%emt 0:00:29]} b3 {[%emt 0:00:29]} 43. h4 {[%emt 0:01:05]} Rc2+ {[%emt 0:00:31]} 44. Kf3 {[%emt 0:00:26]} b2 {[%emt 0:00:25]} 45. g3 {[%emt 0:00:27]} Rc3+ {[%emt 0:00:51]} 46. Kf4 {[%emt 0:00:31]} Rc4+ {[%emt 0:00:28]} 47. Kf3 {[%emt 0:00:26]} Rc2 {[%emt 0:00:26]} 48. Kf4 {[%emt 0:00:29]} Kg7 {[%emt 0:00:51]} 49. Rb8 {[%emt 0:00:35]} Rc4+ {[%emt 0:00:48]} 50. Kf3 {[%emt 0:00:30]} Rc2 {[%emt 0:00:26]} 51. Kf4 {[%emt 0:00:26]} Kg6 {[%emt 0:00:47]} 52. Rb5 {[%emt 0:00:26]} Rc4+ {[%emt 0:00:43]} 53. Kf3 {[%emt 0:00:26]} Rc3+ {[%emt 0:00:25]} 54. Kf4 {[%emt 0:00:27]} Rc2 {[%emt 0:00:27]} 55. Kf3 {[%emt 0:00:51]} f5 {[%emt 0:01:01]} 56. Rb6+ {[%emt 0:00:27]} f6 {[%emt 0:00:28]} 57. Rb7 {[%emt 0:00:32]} Rc3+ {[%emt 0:00:28]} 58. Kf4 {[%emt 0:00:31]} Rc4+ {[%emt 0:00:25]} 59. Kf3 {[%emt 0:00:25]} Rc2 {[%emt 0:00:26]} 60. Kf4 {[%emt 0:00:36]} Rf2+ {[%emt 0:00:45]} 61. Ke3 {[%emt 0:00:26]} Rg2 {[%emt 0:00:28]} 62. Kf3 {[%emt 0:00:02]} Rd2 {[%emt 0:00:01]} 63. Kf4 {[%emt 0:00:06]} Rg2 {[%emt 0:00:09]} 64. Kf3 {[%emt 0:00:03]} Rc2 65. Kf4 {[%emt 0:00:02]} Rc4+ {[%emt 0:00:03]} 66. Kf3 {[%emt 0:00:01]} f4 {[%emt 0:00:08]} 67. gxf4 {[%emt 0:00:15]} Rc2 {[%emt 0:01:22]} 68. Ke4 {[%emt 0:00:25]} Re2+ {[%emt 0:00:03]} 69. Kf3 {[%emt 0:00:01]} Rh2 {[%emt 0:00:03]} 70. Ke4 {[%emt 0:00:20]} Rxh4 {[%emt 0:01:08]} 71. Rxb2 {[%emt 0:00:05]} Rg4 {[%emt 0:00:06]} 72. Rb8 {[%emt 0:00:10]} Rh4 {[%emt 0:00:39]} 73. Rg8+ {[%emt 0:00:09]} Kf7 74. Rb8 {[%emt 0:00:21]} Rh1 {[%emt 0:00:07]} 75. Kf5 {[%emt 0:00:04]} Rf1 {[%emt 0:00:05]} 76. Rb7+ {[%emt 0:00:03]} Kf8 {[%emt 0:00:02]} 77. Rh7 {[%emt 0:00:34]} Kg8 78. Rxh5 {[%emt 0:00:31]} Kg7 79. Rh2 {[%emt 0:00:20]} Ra1 {[%emt 0:00:02]} 80. Rd2 {[%emt 0:00:21]} Ra5+ {[%emt 0:00:02]} 81. Ke6 {[%emt 0:00:25]} Ra6+ {[%emt 0:00:01]} 82. Rd6 {[%emt 0:00:11]} Rxd6+ 83. Kxd6 {[%emt 0:00:01]} f5 {[%emt 0:00:02]} 84. Ke5 {[%emt 0:00:01]} Kg8 {[%emt 0:00:01]} 85. Ke6 {[%emt 0:00:02]} Kg7 {[%emt 0:00:02]} 86. Ke7 {[%emt 0:00:02]} Kg8 {[%emt 0:10:29]} 87. Kf6 {[%emt 0:00:03]} Kf8 88. Kxf5 {[%emt 0:00:01]} Kf7 89. Ke5 Ke7 90. f5 Kf7 91. f6 {[%emt 0:00:01]} Kf8 {[%emt 0:00:04]} 92. Ke4 {[%emt 0:00:02]} Kf7 {[%emt 0:00:02]} 93. Kf5 {[%emt 0:00:02]} Kf8 {[%emt 0:00:01]} 94. Kg6 {[%emt 0:00:02]} Kg8 95. f7+ {[%emt 0:00:02]} Kf8 96. Kf6 {[%emt 0:00:01]} 1/2-1/2

[Event "9th RTU Rapid 2019"]
[Site "Riga"]
[Date "2019.08.04"]
[Round "2.29"]
[White "Isakovs, Janis"]
[Black "Bracker, Arne"]
[Result "0-1"]
[WhiteElo "1923"]
[BlackElo "2227"]
[PlyCount "44"]
[EventDate "2019.08.05"]
[EventType "swiss"]
[EventCountry "LAT"]
[TimeControl "5400+30"]
[WhiteClock "0:01:40"]
[BlackClock "0:00:08"]

1. Nf3 {[%emt 1:15:23]} d5 {[%emt 1:15:23]} 2. c4 {[%emt 0:00:27]} e6 {[%emt 0:00:28]} 3. e3 {[%emt 0:00:44]} Nf6 {[%emt 0:00:30]} 4. d4 {[%emt 0:00:32]} b6 {[%emt 0:00:43]} 5. Nc3 {[%emt 0:00:29]} Bb7 {[%emt 0:00:37]} 6. Be2 {[%emt 0:00:47]} Bd6 {[%emt 0:00:42]} 7. O-O {[%emt 0:00:38]} O-O {[%emt 0:00:29]} 8. a3 {[%emt 0:00:41]} Nbd7 {[%emt 0:01:10]} 9. b4 {[%emt 0:00:39]} dxc4 {[%emt 0:04:12]} 10. Bxc4 {[%emt 0:00:50]} a6 {[%emt 0:01:04]} 11. Bb2 {[%emt 0:00:43]} e5 {[%emt 0:00:38]} 12. d5 {[%emt 0:02:01]} e4 {[%emt 0:02:41]} 13. Nd2 {[%emt 0:03:40]} Re8 {[%emt 0:01:18]} 14. Nb3 {[%emt 0:06:02]} Qe7 {[%emt 0:03:00]} 15. g3 {[%emt 0:03:47]} Qe5 {[%emt 0:01:35]} 16. Rb1 {[%emt 0:00:27]} Qg5 {[%emt 0:00:38]} 17. h4 {[%emt 0:00:32]} Qg6 {[%emt 0:00:31]} 18. Be2 {[%emt 0:00:28]} Bxg3 {[%emt 0:01:31]} 19. fxg3 {[%emt 0:00:26]} Qxg3+ {[%emt 0:00:27]} 20. Kh1 {[%emt 0:00:26]} Qxh4+ {[%emt 0:00:41]} 21. Kg2 {[%emt 0:00:27]} Re5 {[%emt 0:00:34]} 22. Rf4 {[%emt 0:00:43]} Rg5+ {[%emt 0:00:28]} 0-1

[Event "9th RTU Rapid 2019"]
[Site "Riga"]
[Date "2019.08.04"]
[Round "2.30"]
[White "Damen, Jip"]
[Black "Feldmanis, Arturs"]
[Result "1-0"]
[WhiteElo "2179"]
[BlackElo "1875"]
[PlyCount "101"]
[EventDate "2019.08.05"]
[EventType "swiss"]
[EventCountry "LAT"]
[TimeControl "5400+30"]
[WhiteClock "0:01:59"]
[BlackClock "0:05:39"]

1. e4 {[%emt 1:15:21]} c5 {[%emt 1:15:25]} 2. Nf3 {[%emt 0:00:26]} Nc6 {[%emt 0:00:26]} 3. Nc3 {[%emt 0:00:29]} d6 {[%emt 0:00:33]} 4. d4 {[%emt 0:00:30]} cxd4 {[%emt 0:00:29]} 5. Nxd4 {[%emt 0:00:26]} e5 {[%emt 0:00:27]} 6. Nb3 {[%emt 0:00:34]} Be6 {[%emt 0:00:51]} 7. Be2 {[%emt 0:00:30]} Be7 {[%emt 0:00:31]} 8. Nd5 {[%emt 0:00:30]} Nf6 {[%emt 0:00:58]} 9. Nxe7 {[%emt 0:00:27]} Qxe7 {[%emt 0:00:34]} 10. Bf3 {[%emt 0:00:26]} h6 {[%emt 0:00:40]} 11. O-O {[%emt 0:00:36]} O-O {[%emt 0:00:36]} 12. Be3 {[%emt 0:00:33]} Rfd8 {[%emt 0:01:00]} 13. Qe2 {[%emt 0:00:38]} Rac8 {[%emt 0:00:50]} 14. Rfd1 {[%emt 0:00:33]} Nb4 {[%emt 0:02:37]} 15. Rd2 {[%emt 0:01:49]} Bc4 {[%emt 0:01:14]} 16. Qd1 {[%emt 0:00:38]} b6 {[%emt 0:01:04]} 17. c3 {[%emt 0:00:41]} Na6 {[%emt 0:00:49]} 18. Nc1 {[%emt 0:02:17]} Nc5 {[%emt 0:00:34]} 19. Qc2 {[%emt 0:00:28]} Bb5 {[%emt 0:01:13]} 20. a4 {[%emt 0:00:37]} Bc6 {[%emt 0:00:38]} 21. Bxc5 {[%emt 0:00:26]} dxc5 {[%emt 0:00:59]} 22. Rxd8+ {[%emt 0:00:39]} Rxd8 {[%emt 0:00:32]} 23. Ne2 {[%emt 0:00:26]} Qd7 {[%emt 0:01:44]} 24. Ng3 {[%emt 0:00:27]} Qd2 {[%emt 0:02:07]} 25. Qb3 {[%emt 0:00:27]} Qf4 {[%emt 0:00:28]} 26. a5 {[%emt 0:01:17]} Bxe4 {[%emt 0:02:39]} 27. Nxe4 {[%emt 0:01:28]} Nxe4 {[%emt 0:00:27]} 28. Bxe4 {[%emt 0:00:35]} Qxe4 {[%emt 0:00:28]} 29. axb6 {[%emt 0:00:28]} axb6 {[%emt 0:00:29]} 30. Qxb6 {[%emt 0:00:36]} Qd5 {[%emt 0:00:41]} 31. h3 {[%emt 0:00:47]} Qd6 {[%emt 0:00:45]} 32. Qxd6 {[%emt 0:02:41]} Rxd6 {[%emt 0:00:26]} 33. Ra8+ {[%emt 0:00:27]} Kh7 {[%emt 0:00:31]} 34. Rc8 {[%emt 0:00:26]} Rd5 {[%emt 0:00:33]} 35. Kf1 {[%emt 0:01:26]} Kg6 {[%emt 0:00:36]} 36. Ke2 {[%emt 0:00:26]} f5 {[%emt 0:00:53]} 37. c4 {[%emt 0:00:27]} Rd6 {[%emt 0:00:41]} 38. Rxc5 {[%emt 0:00:27]} Kf6 {[%emt 0:00:27]} 39. b4 {[%emt 0:00:29]} Ra6 {[%emt 0:00:29]} 40. Ra5 {[%emt 0:00:33]} Rc6 {[%emt 0:00:37]} 41. c5 {[%emt 0:00:29]} Ke6 {[%emt 0:00:28]} 42. Kd3 {[%emt 0:00:29]} Kd5 {[%emt 0:00:35]} 43. Ra8 {[%emt 0:00:32]} e4+ {[%emt 0:00:34]} 44. Kc3 {[%emt 0:00:26]} f4 {[%emt 0:00:36]} 45. Rd8+ {[%emt 0:00:30]} Ke5 {[%emt 0:00:28]} 46. Kc4 {[%emt 0:00:29]} Rg6 {[%emt 0:00:29]} 47. Re8+ {[%emt 0:00:39]} Kf5 {[%emt 0:00:30]} 48. b5 {[%emt 0:01:29]} Rxg2 {[%emt 0:00:26]} 49. b6 {[%emt 0:00:25]} Rxf2 {[%emt 0:00:27]} 50. b7 {[%emt 0:00:26]} Rb2 {[%emt 0:00:27]} 51. b8=Q {[%emt 0:00:15]} 1-0